Cogmind - Beta 12 @@@ ROGUE MODE // 2023.03.12 @ 16:40:17 Player: hansy Result: Destroyed by Y-45 Defender with Beam Rifle Performance ------------- Evolutions (1) 500 Regions Visited (2) 400 Robots Destroyed (17) 85 Value Destroyed (383) 383 Prototype IDs (0) 0 Alien Tech Used (0) 0 Bonus (0) 0 TOTAL SCORE: 1368 Bonus ------- None Cogmind --------- Core Integrity 0/400 Matter 290/300 Energy 40/100 System Corruption 0% Temperature Cool (9) Movement Core (400) Ox7 Location -9/Materials Parts ------- > --- POWER (1) -------- (None) > --- PROPULSION (2) --- (None) > --- UTILITY (3) ------ Large Storage Unit > --- WEAPON (3) ------- EM Shotgun > --- INVENTORY (15) --- Light Nuclear Core Large Storage Unit Peak State ------------ > --- POWER ------------ Ion Engine > --- PROPULSION ------- Light Treads Light Treads > --- UTILITY ---------- Small Storage Unit Large Storage Unit > --- WEAPON ----------- Medium Laser Light Assault Rifle > --- INVENTORY -------- Ion Engine Light Nuclear Core Large Storage Unit [Rating: 7] Favorites ----------- Power Ion Engine Engine Ion Engine Propulsion Light Treads Treads Light Treads Utility Large Storage Unit Device Heat Sink Storage Large Storage Unit Weapon Medium Laser Energy Gun Medium Laser Ballistic Gun Light Assault Rifle Build | -11 -10 -9 ------- Run | Jun Mat Mat Slots Evolved 2 | . . 2 Power . | . . . Propulsion . | . . . Utility 1 | . . 1 Weapon 1 | . . 1 Parts Attached 11 | 5 4 2 Power 2 | 1 . 1 Engine 2 | 1 . 1 Core . | . . . Reactor . | . . . Propulsion 2 | 2 . . Treads 2 | 2 . . Leg . | . . . Wheel . | . . . Hover . | . . . Flight . | . . . Utility 3 | . 3 . Device 1 | . 1 . Storage 2 | . 2 . Processor . | . . . Hackware . | . . . Protection . | . . . Artifact . | . . . Weapon 4 | 2 1 1 Energy Gun 2 | 1 . 1 Energy Cannon . | . . . Ballistic Gun 2 | 1 1 . Ballistic Cannon . | . . . Launcher . | . . . Special Weapon . | . . . Impact Weapon . | . . . Slashing Weapon . | . . . Piercing Weapon . | . . . Special Melee Weapon . | . . . Unidentified Prototypes . | . . . Parts Lost 8 | . 1 7 Power 2 | . . 2 Propulsion 2 | . . 2 Utility 1 | . . 1 Weapon 3 | . 1 2 Highest Loss Streak 5 | . 1 5 To Critical Strikes . | . . . Average Slot Usage (%) 73 | . 83 46 Engine 11 | . 14 6 Treads 22 | . 28 9 Device 2 | . . 7 Storage 11 | . 12 11 Energy Gun 11 | . 14 3 Ballistic Gun 12 | . 14 8 Naked Turns . | . . . Heaviest Build 29 | 9 29 29 Greatest Support 40 | 40 40 40 Greatest Overweight (x) 6 | . . 6 Average Overweight (x) . | . . 1 Largest Inventory Capacity 15 | 5 15 15 Average Capacity 10 | 5 10 15 Most Carried 5 | 5 4 3 Average Carried 2 | 2 2 2 Final Capacity 15 | 5 15 15 Final Carried 3 | 3 3 2 Class Distribution -------------------- 100% | Mutant Dominant Class ---------------- Mutant | -10/Materials Mutant | -9/Materials Resources | -11 -10 -9 ----------- Run | Jun Mat Mat Matter Collected 393 | 157 226 10 Remotely . | . . . Salvage Created 502 | . 354 148 Parts 27 | . 19 8 Haulers Intercepted 1 | . 1 . Recyclers Shooed . | . . . Parts Field Recycled . | . . . Retrieved Matter . | . . . Parts Self-Destructed . | . . . Prevented . | . . . Kills | -11 -10 -9 ------- Run | Jun Mat Mat Combat Hostiles Destroyed 15 | . 10 5 Guns 15 | . 10 5 Classes Destroyed 4 | . 4 . Hauler 1 | . 1 . Watcher 1 | . 1 . Swarmer 7 | . 5 2 Grunt 8 | . 5 3 Best Kill Streak 3 | . 3 3 Combat Bots Only 3 | . 3 3 Max Kills in Single Turn 2 | . 2 1 Gunslinging 1 | . 1 . Exploded . | . . . Melee . | . . . Uniques/NPCs Destroyed . | . . . Combat | -11 -10 -9 -------- Run | Jun Mat Mat Damage Taken 1516 | . 684 832 Core 583 | . 175 408 Absorbed by Shields . | . . . Core Remaining (%) 65 | 100 30 . Volleys Fired 82 | . 51 31 Largest 2 | . 2 2 Hottest 70 | . 70 70 Shots Fired 135 | . 98 37 Gun 135 | . 98 37 Cannon . | . . . Launcher . | . . . Special . | . . . Kinetic 77 | . 50 27 Thermal 54 | . 48 6 Explosive . | . . . Electromagnetic 4 | . . 4 Robot Hit Streak 14 | . 9 14 Robot Miss Streak 4 | . 4 3 Penetration Max . | . . . Secondary Targets 4 | . 4 . Max Gunslinging Chain 1 | . 1 . Shots Hit Robots 84 | . 55 29 Core Hits 32 | . 20 12 Critical Kills . | . . . Critical Parts Destroyed 1 | . 1 . Critical Strikes 7 | . 7 . Burn 6 | . 6 . Destroy 1 | . 1 . Melee Attacks . | . . . Impact . | . . . Slashing . | . . . Piercing . | . . . Sneak Attacks . | . . . Combat Hostiles . | . . . Follow-up Attacks . | . . . Damage Inflicted 966 | . 681 285 Guns 966 | . 681 285 Cannons . | . . . Explosions . | . . . Melee . | . . . Ramming . | . . . Kinetic 477 | . 305 172 Thermal 428 | . 376 52 Explosive . | . . . Electromagnetic 61 | . . 61 Impact . | . . . Slashing . | . . . Piercing . | . . . Highest Corruption . | . . . Average Corruption . | . . . Corruption Purged . | . . . Corruption Blocked . | . . . Overload Shots . | . . . Overflow Damage . | . . . Projectiles . | . . . Explosions . | . . . Melee . | . . . Knockbacks . | . . . Impact . | . . . Kinetic . | . . . Secondary . | . . . Self-Inflicted Damage . | . . . Shots . | . . . Rammed 2 | . . 2 Targets Rammed 2 | . . 2 Kicked . | . . . Crushed . | . . . Highest Temperature 219 | . 219 22 Average Temperature 55 | . 60 8 Received Heat Transfer 552 | . 198 354 Siege Activations . | . . . Robots Corrupted . | . . . Combat Hostiles . | . . . Parts Fried . | . . . Impact Corruptions . | . . . Robots Melted . | . . . Combat Hostiles . | . . . Parts Melted 4 | . 4 . Heat Transferred 1628 | . 1480 148 Parts Sabotaged . | . . . Parts Stolen . | . . . Parts Stripped . | . . . Power Chain Reactions . | . . . Missiles Intercepted . | . . . Alert | -11 -10 -9 ------- Run | Jun Mat Mat Peak Influence 304 | . 304 168 Initial 128 | . . 128 Average 156 | . 189 142 Maximum Alert Level 1 | . 1 . Low Security (%) 57 | 100 34 100 Level 1 42 | . 65 . Level 2 . | . . . Level 3 . | . . . Level 4 . | . . . Level 5 . | . . . High Security . | . . . Max Security . | . . . Squads Dispatched 4 | . 2 2 Investigation 2 | . 1 1 Extermination . | . . . Reinforcement 2 | . 1 1 Assault . | . . . Garrison . | . . . Intercept . | . . . Searches Triggered . | . . . Construction Impeded . | . . . Haulers Reinforced . | . . . Active Scanning Responses . | . . . Cargo Convoy Interrupts . | . . . Stealth | -11 -10 -9 --------- Run | Jun Mat Mat Distress Signals 4 | . 2 2 Communications Jammed . | . . . Distress Signals . | . . . Times Spotted 26 | . 17 9 Peak Tracking Total 6 | . 5 6 Tactical Retreats 1 | . 1 . Traps | -11 -10 -9 ------- Run | Jun Mat Mat Traps Triggered 1 | . . 1 Indirectly . | . . . Trap Hack Attempts . | . . . Triggered . | . . . Disarmed . | . . . Reprogrammed . | . . . Reused . | . . . Traps Extracted . | . . . Installed . | . . . Triggered . | . . . Machines | -11 -10 -9 ---------- Run | Jun Mat Mat Machines Disabled 1 | . 1 . Max in Single Turn 1 | . 1 . Machines Repaired . | . . . Machines Sabotaged . | . . . Overloaded Fab Kills . | . . . Hacking | -11 -10 -9 --------- Run | Jun Mat Mat Machines Accessed 3 | . 3 . Terminals 3 | . 3 . Fabricators . | . . . Repair Stations . | . . . Recycling Units . | . . . Scanalyzers . | . . . Garrison Access . | . . . Total Hacks 11 | . 11 . Successful 6 | . 6 . Failed 5 | . 5 . Catastrophic . | . . . Database Lockouts . | . . . Manual 11 | . 11 . Terminals 11 | . 11 . Fabricators . | . . . Repair Stations . | . . . Recycling Units . | . . . Scanalyzers . | . . . Garrison Access . | . . . Terminal Hacks 4 | . 4 . Robot Analysis 4 | . 4 . Fabricator Hacks . | . . . Repair Station Hacks . | . . . Recycling Unit Hacks . | . . . Scanalyzer . | . . . Garrison Access Hacks . | . . . Unauthorized Hacks 2 | . 2 . Terminals 2 | . 2 . Assimilate 1 | . 1 . Botnet 1 | . 1 . Fabricators . | . . . Repair Stations . | . . . Recycling Units . | . . . Scanalyzers . | . . . Garrison Access . | . . . Data Cores Recovered . | . . . Used . | . . . Hacking Detections 3 | . 3 . Full Trace Events 1 | . 1 . Feedback Events . | . . . Feedback Blocked . | . . . Robot Schematics Acquired . | . . . Robots Built . | . . . Authchips . | . . . Time . | . . . Total Robot Build Rating . | . . . Part Schematics Acquired . | . . . Parts Built . | . . . Authchips . | . . . Time . | . . . Total Part Build Rating . | . . . Parts Repaired . | . . . Time . | . . . Parts Recycled . | . . . Recycled Matter . | . . . Retrieved Matter . | . . . Retrieved Components . | . . . Parts Scanalyzed . | . . . Part Schematics Acquired . | . . . Parts Damaged . | . . . Bothacking | -11 -10 -9 ------------ Run | Jun Mat Mat Used RIF Installer . | . . . Robots Hacked . | . . . Non-combat . | . . . Combat . | . . . Robot Hacks Applied . | . . . Relay Couplers Released . | . . . Fabnet Peak Effective % . | . . . Robots Rewired . | . . . Allies Hacked . | . . . Hacks Repelled . | . . . Allies | -11 -10 -9 -------- Run | Jun Mat Mat Total Allies 1 | . 1 . Largest Group 1 | . 1 1 Highest-Rated Group 10 | . 10 10 Highest-Rated Ally 10 | . 10 10 Total Orders . | . . . Ally Attacks . | . . . Total Damage . | . . . Kills . | . . . Allies Corrupted . | . . . Allies Melted . | . . . Intel | -11 -10 -9 ------- Run | Jun Mat Mat Robot Analysis Total 4 | . 4 . Derelict Logs Recovered . | . . . Drone Launches . | . . . Drone Recoveries . | . . . Exploration | -11 -10 -9 ------------- Run | Jun Mat Mat Turns Passed 514 | 57 330 127 Spaces Moved 164 | 35 107 22 Core 16 | 11 . 5 Treads 148 | 24 107 17 Legs . | . . . Wheels . | . . . Hover . | . . . Flight . | . . . Fastest Speed 50 | 50 160 160 Average Speed 162 | 125 160 232 Slowest Speed 350 | 160 160 350 Overloaded Moves . | . . . Propulsion Burnouts . | . . . Robots Hopped . | . . . Cave-ins Triggered . | . . . Exploration Rate (%) 15 | 5 33 7 Regions Visited 2 Branch Regions . Pre-discovered Areas . | . . . Known Exits Taken . | . . . Unknown Exits Taken 2 | 1 1 . Scrap Searched . | . . . Spaces Dug . | . . . Terrain Destroyed . | . . . Melee . | . . . Projectile . | . . . AOE . | . . . Terrain Rammed . | . . . Walls Destroyed . | . . . Machines Disabled . | . . . Actions | -11 -10 -9 --------- Run | Jun Mat Mat Total 284 | 49 173 62 Wait 11 | . 7 4 Move 162 | 34 106 22 Hop . | . . . Pick Up 14 | 9 4 1 Fast Attach . | . . . Attach 11 | 5 4 2 Detach . | . . . Swap . | . . . Drop 2 | 1 1 . Fire 82 | . 51 31 Melee . | . . . Ram 2 | . . 2 Kick . | . . . Crush . | . . . Escape Stasis . | . . . Rewire . | . . . Trap . | . . . Miscellaneous . | . . . Route ------- -11/Junkyard -10/Materials -9/Materials History --------- Turn | Location | Event 6 | -11/Junkyard | Discovered new exit (range 15) 58 | -11/Junkyard | Entered Materials 197 | -10/Materials | Core integrity fell below 50% 316 | -10/Materials | Build established: Mutant 323 | -10/Materials | Discovered new exit (range 11) 388 | -10/Materials | Entered another Materials area 388 | -9/Materials | Accompanied by 1 ally 388 | -9/Materials | Evolved 2 slots: Utility x1, Weapon x1 484 | -9/Materials | Core integrity fell below 50% 492 | -9/Materials | Core integrity fell below 20% 511 | -9/Materials | Lost 5 parts (2p1n1u1w) 515 | -9/Materials | Destroyed by Y-45 Defender with Beam Rifle Last Messages --------------- 00441_ Acquired 10 matter. 00443_ R-06 Scavenger collects Aluminum Leg. 00447_ R-06 Scavenger collects Heat Sink. 00450_ R-06 Scavenger sends out distress signal. 00452_ A-02 Transporter sends out distress signal. 00458_ Ion Engine destroyed. 00462_ Critical hit (Burn: +37). 00470_ Ion Engine destroyed. 00473_ Lgt. Treads destroyed. 00479_ Heat Sink destroyed. 00480_ Lgt. Assault Rifle destroyed. 00482_ Slammed into Y-45 Defender. 00482_ Triggered Alarm Trap. 00482_ An alarm sounds. 00482_ ALERT: Alarm triggered, dispatching investigation squad. 00482_ Critical hit (Burn: +37). 00485_ Slammed into Y-45 Defender. 00506_ S-10 Pest destroyed. 00506_ Acquired EM Shotgun. 00508_ S-10 Pest destroyed. Map ----- +----------------------------------------------------+ | ?????????????????????????????????????????????????? | | ?????????????????????????????????????????????????? | | ?????????????????????????????????????????????????? | | ?????????????????????????????????????????????????? | | ?????????????????????????????????????????????????? | | ?????????????????????????????????????????????????? | | ?????????????????????????????????????????????????? | | ?????????????????????????????????????????????????? | | ?????????????????????????????????????????????????? | | ???????????????????????????#####?????????????????? | | ??????????????????????????? ?????????????????? | | ??????????????????????????? ?????????????????? | | ??????????????????????????? ??????????????????? | | ????????????????????????? ??????????????????? | | ????????????????????????? """ ??????????????????? | | ??????????????????????????""" ??????????????????? | | ???????????????????????????"" ??????????????????? | | ??????????????????#????????? ??????????????????? | | ??????????????????# #######/##################?? | | ??????????????????# !% #?? | | ??????????????????# % #?? | | ??????????????????# %% *% #?? | | ???????????????????###+######+#############+#####? | | ????????????????????????# %[Y #???# ! #? | | ????????????????????????#*=%g #???# #? | | ????????????????????????#@=*Y #???# """ """ #? | | ????????????????????????# #??# """ """ #? | | ????????????????????????# ##??# """ """ #? | | ????????????????????????# #???# """ """ #? | | ????????????????????????# !! #???# """ """?#? | | ????????????????????????# ! #???#??? ???? | | ????????????????????????###########???????####???? | | ?????????????????????????????????????????????????? | | | | | | | | | | | | | | | | | | | | | | | | | | | | | | | | | | | +----------------------------------------------------+ Best States ------------- Heat Dissipation 38 Energy Generation 10 Energy Capacity 250 Matter Stores 300 Matter Capacity 300 Sight Range 16 Terrain Scan Density 10 Evasion (%) 50 Recoil Reduction 2 Item Schematics ----------------- None Robot Schematics ------------------ None Fabricated ------------ Nothing Alien Tech Used ----------------- None Achievements -------------- None Challenges ------------ None Game ------ Seed SurveybotMiniKit Manual? 0 Play Time 00:05:37 Cumulative 120.5 hours Start 2023.03.12 @ 16:35:31 End 2023.03.12 @ 16:40:17 Sessions 1 Manual Loads 0 Difficulty Rogue Special Mode None Game No. 119 Rogue 119 Adventurer 0 Explorer 0 Win Type - Total 1 Types 1/0/0/0/0/0/0/0/0 Lore% 44 Gallery% 59 Achievement% 48 Wizard Run 0 Options --------- ASCII 0 Keyboard 0 Movement Numpad Keybinds 0 Fullscreen 2 Font 18/Smallcaps Map View 76x50 Tactical HUD 1 Map Filters NONE Filters NONE Steam 1 RUN: b17047e4-84e8-4744-85d9-4ce71109427a